fUSD/lending_fUSD_20251006
["ID","MTS","AMOUNT","RATE_DAILY","PERIOD"]
[389610326,1759744247277,-504.06212442,0.00016438,2]
[389610327,1759744247287,-500.0,0.00016438,2]
[389610328,1759744247296,-254.21752075,0.00016438,2]
[389610329,1759744247345,-245.78247925,0.00016438,2]
[389610330,1759744247355,-233.32515317,0.00016438,2]
[389610331,1759744247367,-266.67484683,0.00016438,2]
[389610332,1759744247377,-500.0,0.00016438,2]
[389610333,1759744247387,-500.0,0.00016438,2]
[389610334,1759744247396,-477.46361919,0.00016438,2]
[389610335,1759744247406,-500.0,0.00016438,2]
[389610336,1759744247415,-500.0,0.00016438,2]
[389610337,1759744247425,-518.30653986,0.00016438,2]
[389610338,1759744247435,-500.76710967,0.00016438,2]
[389610339,1759744247444,-500.0,0.00016438,2]
[389610340,1759744247453,-584.41701094,0.00016438,2]
[389610341,1759744247463,-500.0,0.00016438,2]
[389610342,1759744247472,-500.0,0.00016438,2]
[389610343,1759744247482,-500.0,0.00016438,2]
[389610344,1759744247491,-500.0,0.00016438,2]
[389610345,1759744247501,-500.0,0.00016438,2]
[389610346,1759744247510,-500.0,0.00016438,2]
[389610347,1759744247519,-551.84529118,0.00016438,2]
[389610348,1759744247529,-500.0,0.00016438,2]
[389610349,1759744247539,-500.0,0.00016438,2]
[389610350,1759744247548,-500.0,0.00016438,2]
[389610351,1759744247558,-500.0,0.00016438,2]
[389610352,1759744247567,-500.0,0.00016438,2]
[389610353,1759744247577,-500.0,0.00016438,2]
[389610354,1759744247587,-500.0,0.00016438,2]
[389610355,1759744247596,-105.52613578,0.00016438,2]
[389610361,1759744634771,383.36826717,5.7e-05,2]
[389610364,1759745230830,260.24,7.569e-05,2]
[389610403,1759745431974,-1601.2698,0.00015397,2]
[389610405,1759745431985,-958.01119287,0.00015397,2]
[389610416,1759745432080,-310.95900364,0.00015397,2]
[389610423,1759745432135,-2065.45,0.00015397,2]
[389610434,1759745432241,-1303.31000349,0.00015397,2]
[389610436,1759745432251,-4117.0,0.00015397,2]
[389610438,1759745432260,-1181.0,0.00015397,2]
[389610440,1759745432270,-251.76974092,0.00015949,2]
[389610442,1759745432280,-300.0,0.00015989,2]
[389610443,1759745432289,-300.0,0.00015989,2]
[389610444,1759745432299,-1200.0,0.00015989,2]
[389610445,1759745432309,-514.47,0.0001599,2]
[389610446,1759745432319,-500.0,0.0001599,2]
[389610447,1759745432328,-500.0,0.0001599,2]
[389610448,1759745432338,-231.28369723,0.0001599,2]
[389610449,1759745432347,-500.0,0.0001599,2]
[389610451,1759745432357,-500.0,0.0001599,2]
[389610452,1759745432367,-500.0,0.0001599,2]
[389610454,1759745432376,-500.0,0.0001599,2]
[389610456,1759745432385,-500.0,0.0001599,2]
[389610458,1759745432395,-500.0,0.0001599,2]
[389610460,1759745432404,-500.0,0.0001599,2]
[389610463,1759745432413,-500.0,0.0001599,2]
[389610465,1759745432422,-500.0,0.0001599,2]
[389610468,1759745432433,-500.0,0.0001599,2]
[389610471,1759745432442,-500.0,0.0001599,2]
[389610474,1759745432452,-500.0,0.0001599,2]
[389610477,1759745432461,-500.0,0.0001599,2]
[389610480,1759745432470,-500.0,0.0001599,2]
[389610483,1759745432479,-322.6107,0.0001599,2]
[389610486,1759745432489,-305.37,0.00015998,2]
[389610490,1759745432498,-301.3,0.00015998,2]
[389610492,1759745432508,-433.69,0.00015998,2]
[389610495,1759745432517,-440.01,0.00015998,2]
[389610498,1759745432526,-442.26,0.00015999,2]
[389610501,1759745432536,-436.06,0.00015999,2]
[389610506,1759745432548,-305.04,0.00015999,2]
[389610508,1759745432558,-429.57,0.00015999,2]
[389610510,1759745432567,-427.51,0.00015999,2]
[389610513,1759745432576,-440.22,0.00015999,2]
[389610516,1759745432586,-5266.02418967,0.00015999,2]
[389610521,1759745432598,-2071.7809554,0.00015999,2]
[389610523,1759745432609,-291.98779299,0.00015999,2]
[389610526,1759745432628,-287.8619546,0.00015999,2]
[389610640,1759745437993,-150.0,0.00015,2]
[389610641,1759745438003,-167.58483965,0.00015396,2]
[389610642,1759745438013,-581.81516035,0.00015397,2]
[389610643,1759745438024,-375.98421403,0.00015397,2]
[389610647,1759745438047,-1585.20062562,0.00015397,2]
[389610648,1759745438337,-78.05911784,0.00015999,2]
[389610650,1759745439886,-1455.4501939,0.00015999,2]
[389610651,1759745439992,-9303.0,0.00015999,2]
[389610657,1759745442927,-529.07360189,0.00015999,2]
[389610658,1759745442982,-30456.92219371,0.00015999,2]
[389610659,1759745442992,-8415.32,0.00015999,2]
[389610660,1759745443002,-150.99,0.00015999,2]
[389610661,1759745443011,-150.99,0.00015999,2]
[389610662,1759745443021,-430.04,0.00015999,2]
[389610663,1759745443031,-435.59,0.00015999,2]
[389610664,1759745443041,-302.97,0.00015999,2]
[389610665,1759745443051,-440.83,0.00015999,2]
[389610666,1759745443062,-432.96,0.00015999,2]
[389610667,1759745443072,-430.76,0.00015999,2]
[389610668,1759745443081,-435.24,0.00016,2]
[389610669,1759745443095,-304.28,0.00016,2]
[389610670,1759745443105,-444.56,0.00016,2]
[389610671,1759745443115,-439.46,0.00016,2]
[389610672,1759745443125,-437.9,0.00016,2]
[389610673,1759745443135,-13712.0,0.00016,2]
[389610674,1759745443145,-438.86,0.00016,2]
[389610675,1759745443155,-434.08,0.00016,2]
[389610676,1759745443164,-430.53,0.00016,2]
[389610677,1759745443174,-304.93,0.00016,2]
[389610678,1759745443184,-438.22,0.00016,2]
[389610679,1759745443194,-428.38,0.00016,2]
[389610680,1759745443203,-428.56,0.00016,2]
[389610681,1759745443213,-437.63,0.00016,2]
[389610682,1759745443223,-370.68887098,0.00016018,2]
[389610683,1759745443233,-301.29,0.00016043,2]
[389610684,1759745443242,-427.92,0.00016043,2]
[389610685,1759745443252,-443.67,0.00016059,2]
[389610686,1759745443262,-437.6,0.00016059,2]
[389610687,1759745443273,-431.34,0.00016059,2]
[389610688,1759745443283,-302.13,0.00016059,2]
[389610689,1759745443293,-441.59,0.00016059,2]
[389610690,1759745443303,-444.32,0.00016059,2]
[389610691,1759745443317,-436.73,0.00016059,2]
[389610692,1759745443327,-442.23,0.00016059,2]
[389610693,1759745443336,-303.76,0.00016059,2]
[389610694,1759745443347,-429.33,0.00016059,2]
[389610695,1759745443357,-432.3,0.00016059,2]
[389610697,1759745443367,-303.36,0.00016059,2]
[389610699,1759745443377,-300.64,0.00016059,2]
[389610700,1759745443386,-150.0,0.00016059,2]
[389610701,1759745443396,-150.0,0.00016059,2]
[389610702,1759745443406,-519.0,0.00016059,2]
[389610703,1759745443416,-150.0,0.00016059,2]
[389610704,1759745443425,-150.0,0.00016059,2]
[389610705,1759745443435,-150.0,0.00016059,2]
[389610706,1759745443445,-150.3239211,0.00016059,2]
[389610707,1759745443455,-150.0,0.00016059,2]
[389610708,1759745443465,-150.0,0.00016059,2]
[389610710,1759745443475,-2702.0,0.00016059,2]
[389610712,1759745443484,-480.0,0.00016059,2]
[389610714,1759745443493,-150.0,0.00016059,2]
[389610716,1759745443503,-150.0,0.00016059,2]
[389610718,1759745443513,-150.0,0.00016059,2]
[389610721,1759745443522,-150.0,0.00016059,2]
[389610723,1759745443532,-500.0,0.00016059,2]
[389610725,1759745443545,-150.0,0.00016059,2]
[389610728,1759745443555,-500.0,0.00016059,2]
[389610730,1759745443564,-500.0,0.00016059,2]
[389610732,1759745443574,-150.0,0.00016059,2]
[389610734,1759745443583,-500.0,0.00016059,2]
[389610736,1759745443594,-500.0,0.00016059,2]
[389610739,1759745443604,-150.0,0.00016059,2]
[389610741,1759745443614,-500.0,0.00016059,2]
[389610743,1759745443623,-510.0,0.00016059,2]
[389610745,1759745443632,-150.0,0.00016059,2]
[389610746,1759745443642,-150.0,0.00016059,2]
[389610747,1759745443651,-150.0,0.00016059,2]
[389610748,1759745443660,-772.0,0.00016059,2]
[389610749,1759745443670,-520.0,0.00016059,2]
[389610750,1759745443679,-437.39,0.00016059,2]
[389610751,1759745443689,-430.93,0.00016059,2]
[389610752,1759745443704,-431.23,0.00016059,2]
[389610753,1759745443715,-434.23,0.00016059,2]
[389610754,1759745443725,-441.21,0.00016059,2]
[389610755,1759745443735,-302.95,0.00016059,2]
[389610756,1759745443746,-304.52,0.00016059,2]
[389610757,1759745443756,-433.69,0.00016059,2]
[389610758,1759745443766,-438.86,0.00016059,2]
[389610759,1759745443779,-443.86,0.0001606,2]
[389610760,1759745443788,-434.82,0.0001606,2]
[389610761,1759745443798,-428.25,0.0001606,2]
[389610762,1759745443808,-430.04,0.0001606,2]
[389610763,1759745443818,-300.84,0.00016061,2]
[389610764,1759745443830,-429.41,0.00016065,2]
[389610765,1759745443840,-431.37,0.00016065,2]
[389610766,1759745443851,-433.19,0.00016065,2]
[389610767,1759745443860,-440.4,0.00016072,2]
[389610768,1759745443870,-434.01,0.00016072,2]
[389610769,1759745443880,-150.0,0.00016082,2]
[389610770,1759745443889,-150.0,0.00016082,2]
[389610771,1759745443899,-302.85,0.00016088,2]
[389610772,1759745443908,-433.51,0.0001609,2]
[389610773,1759745443918,-429.37,0.0001609,2]
[389610774,1759745443927,-433.05,0.0001609,2]
[389610775,1759745443937,-305.32,0.00016093,2]
[389610776,1759745443946,-430.07,0.00016093,2]
[389610777,1759745443956,-436.82,0.00016093,2]
[389610778,1759745443965,-435.95,0.00016093,2]
[389610779,1759745443982,-431.5,0.00016093,2]
[389610780,1759745443991,-305.63,0.00016093,2]
[389610781,1759745444001,-435.31,0.00016093,2]
[389610782,1759745444010,-428.74,0.00016093,2]
[389610783,1759745444020,-305.62,0.00016094,2]
[389610784,1759745444030,-430.42,0.00016094,2]
[389610785,1759745444039,-437.15,0.00016094,2]
[389610786,1759745444048,-428.29,0.00016095,2]
[389610787,1759745444058,-443.93,0.00016095,2]
[389610788,1759745444067,-303.95,0.00016098,2]
[389610789,1759745444077,-431.13,0.00016098,2]
[389610790,1759745444086,-444.4,0.00016098,2]
[389610791,1759745444095,-443.46,0.00016098,2]
[389610792,1759745444105,-303.17,0.00016098,2]
[389610793,1759745444115,-433.71,0.00016099,2]
[389610794,1759745444125,-430.37,0.00016099,2]
[389610795,1759745444135,-440.73,0.00016099,2]
[389610796,1759745444144,-429.02,0.00016099,2]
[389610797,1759745444154,-301.14,0.00016099,2]
[389610798,1759745444163,-441.32,0.000161,2]
[389610799,1759745444173,-436.51,0.000161,2]
[389610800,1759745444183,-436.15,0.00016101,2]
[389610801,1759745444193,-432.52,0.00016101,2]
[389610802,1759745444203,-444.12,0.00016104,2]
[389610803,1759745444213,-300.29,0.00016104,2]
[389610804,1759745444223,-444.68,0.00016104,2]
[389610805,1759745444241,-434.81,0.00016104,2]
[389610806,1759745444251,-431.05,0.00016104,2]
[389610807,1759745444261,-438.37,0.00016104,2]
[389610808,1759745444271,-302.94,0.00016105,2]
[389610809,1759745444282,-429.98,0.00016105,2]
[389610810,1759745444292,-435.84,0.00016107,2]
[389610811,1759745444302,-436.51,0.00016107,2]
[389610812,1759745444312,-429.48,0.00016107,2]
[389610813,1759745444322,-439.13,0.00016107,2]
[389610814,1759745444332,-2448.13515391,0.00016109,2]
[389610815,1759745444344,-301.68,0.00016109,2]
[389610816,1759745444355,-300.73,0.00016109,2]
[389610817,1759745444364,-304.73,0.00016109,2]
[389610818,1759745444374,-300.07,0.00016109,2]
[389610819,1759745444384,-427.74,0.00016109,2]
[389610820,1759745444393,-303.77,0.00016109,2]
[389610821,1759745444403,-444.16,0.00016109,2]
[389610822,1759745444413,-436.3,0.00016109,2]
[389610823,1759745444423,-442.92,0.00016109,2]
[389610824,1759745444433,-431.6,0.00016109,2]
[389610825,1759745444442,-301.19,0.00016109,2]
[389610826,1759745444452,-433.03,0.00016109,2]
[389610827,1759745444462,-9999.99,0.00016116,2]
[389610828,1759745444471,-150.0,0.0001618,2]
[389610829,1759745444481,-837.28447751,0.00016228,2]
[389610830,1759745444490,-514.47,0.00016264,2]
[389610831,1759745444502,-4738.0,0.00016267,2]
[389610832,1759745444512,-1625.59788,0.0001627,2]
[389610833,1759745444521,-2046.0,0.00016284,2]
[389610834,1759745444531,-1256.338,0.00016284,2]
[389610835,1759745444541,-337.132,0.00016284,2]
[389610836,1759745444550,-815.0,0.00016284,2]
[389610837,1759745444560,-200.0,0.00016306,2]
[389610838,1759745444569,-200.0,0.00016306,2]
[389610839,1759745444579,-200.0,0.00016307,2]
[389610840,1759745444588,-200.0,0.00016307,2]
[389610841,1759745444598,-150.0,0.00016333,2]
[389610842,1759745444607,-519.0,0.00016333,2]
[389610843,1759745444617,-150.0,0.00016333,2]
[389610844,1759745444626,-150.0,0.00016333,2]
[389610845,1759745444637,-150.0,0.00016333,2]
[389610846,1759745444781,-150.0,0.00016333,2]
[389610847,1759745444791,-2702.0,0.00016333,2]
[389610848,1759745444800,-480.0,0.00016333,2]
[389610849,1759745444809,-150.0,0.00016333,2]
[389610850,1759745444819,-150.0,0.00016333,2]
[389610851,1759745444828,-150.0,0.00016333,2]
[389610852,1759745444837,-500.0,0.00016333,2]
[389610853,1759745444846,-500.0,0.00016333,2]
[389610854,1759745444855,-500.0,0.00016333,2]
[389610855,1759745444865,-549.80287011,0.00016333,2]
[389610856,1759745444874,-500.0,0.00016333,2]
[389610857,1759745444883,-510.0,0.00016333,2]
[389610858,1759745444893,-200.0,0.00016333,2]
[389610859,1759745444902,-772.0,0.00016333,2]
[389610860,1759745444911,-520.0,0.00016333,2]
[389610861,1759745444920,-154.6140209,0.00016338,2]
[389610862,1759745444930,-5000.0,0.00016338,2]
[389610863,1759745444939,-150.0,0.00016356,2]
[389610864,1759745444948,-150.84243942,0.00016356,2]
[389610865,1759745444958,-302.5,0.00016399,2]
[389610866,1759745444967,-2000.0,0.000164,2]
[389610867,1759745444977,-2500.0,0.000164,3]
[389610868,1759745444986,-2000.0,0.0001641,2]
[389610869,1759745444995,-2000.0,0.0001642,2]
[389610870,1759745445005,-453.37,0.00016428,2]
[389610871,1759745445014,-2145.992679,0.0001643,2]
[389610872,1759745445023,-261.21774356,0.00016431,2]
[389610873,1759745445032,-666.0,0.00016437,2]
[389610874,1759745445041,-116377.15735629,0.00016438,2]
[389610875,1759745445050,-171.0,0.00016438,3]
[389610876,1759745445059,-151.0,0.00016438,2]
[389610877,1759745445068,-155.200149,0.00016438,2]
[389610878,1759745445078,-500.0,0.00016438,2]
[389610879,1759745445090,-500.0,0.00016438,2]
[389610880,1759745445101,-500.0,0.00016438,2]
[389610881,1759745445111,-500.0,0.00016438,2]
[389610882,1759745445120,-500.0,0.00016438,2]
[389610883,1759745445130,-500.0,0.00016438,2]
[389610884,1759745445140,-500.0,0.00016438,2]
[389610885,1759745445149,-500.0,0.00016438,2]
[389610886,1759745445159,-281.99402529,0.00016438,2]
[389610887,1759745445168,-529.84919447,0.00016438,2]
[389610888,1759745445177,-500.0,0.00016438,2]
[389610889,1759745445186,-500.0,0.00016438,2]
[389610890,1759745445195,-500.0,0.00016438,2]
[389610891,1759745445205,-500.0,0.00016438,2]
[389610892,1759745445215,-500.0,0.00016438,2]
[389610893,1759745445224,-216.82089042,0.00016438,2]
[389610894,1759745445234,-500.0,0.00016438,2]
[389610895,1759745445243,-500.0,0.00016438,2]
[389610896,1759745445252,-511.4107142,0.00016438,2]
[389610897,1759745445262,-533.43836221,0.00016438,2]
[389610898,1759745445272,-283.14266747,0.00016438,2]
[389610899,1759745445282,-506.01192164,0.00016438,2]
[389610900,1759745445292,-500.0,0.00016438,2]
[389610901,1759745445301,-500.0,0.00016438,2]
[389610902,1759745445310,-501.63076865,0.00016438,2]
[389610903,1759745445319,-504.30283303,0.00016438,2]
[389610904,1759745445328,-500.0,0.00016438,2]
[389610905,1759745445338,-500.0,0.00016438,2]
[389610906,1759745445348,-517.56810346,0.00016438,2]
[389610907,1759745445358,-515.68722395,0.00016438,2]
[389610908,1759745445368,-500.0,0.00016438,2]
[389610909,1759745445377,-500.0,0.00016438,2]
[389610910,1759745445386,-500.0,0.00016438,2]
[389610911,1759745445396,-500.0,0.00016438,2]
[389610912,1759745445405,-520.8152122,0.00016438,2]
[389610913,1759745445415,-500.0,0.00016438,2]
[389610914,1759745445424,-500.0,0.00016438,2]
[389610915,1759745445433,-500.0,0.00016438,2]
[389610916,1759745445443,-500.0,0.00016438,2]
[389610917,1759745445452,-500.0,0.00016438,2]
[389610918,1759745445461,-300.75120068,0.00016438,2]
[389610919,1759745445471,-500.0,0.00016438,2]
[389610920,1759745445480,-500.0,0.00016438,2]
[389610921,1759745445489,-365.47557502,0.00016438,2]
[389610922,1759745445498,-500.0,0.00016438,2]
[389610923,1759745445508,-518.50434907,0.00016438,2]
[389610924,1759745445518,-500.0,0.00016438,2]
[389610925,1759745445527,-502.7125213,0.00016438,2]
[389610926,1759745445536,-500.0,0.00016438,2]
[389610927,1759745445549,-502.51847402,0.00016438,2]
[389610928,1759745445559,-500.0,0.00016438,2]
[389610929,1759745445568,-500.0,0.00016438,2]
[389610930,1759745445579,-500.0,0.00016438,2]
[389610931,1759745445588,-500.0,0.00016438,2]
[389610932,1759745445597,-500.0,0.00016438,2]
[389610933,1759745445607,-500.0,0.00016438,2]
[389610934,1759745445616,-348.55070364,0.00016438,2]
[389610935,1759745445626,-500.0,0.00016438,2]
[389610936,1759745445635,-500.0,0.00016438,2]
[389610937,1759745445644,-500.0,0.00016438,2]
[389610938,1759745445654,-512.80142175,0.00016438,2]
[389610939,1759745445664,-500.0,0.00016438,2]
[389610941,1759745445674,-500.0,0.00016438,2]
[389610942,1759745445683,-500.0,0.00016438,2]
[389610943,1759745445693,-500.0,0.00016438,2]
[389610944,1759745445707,-500.0,0.00016438,2]
[389610945,1759745445716,-500.0,0.00016438,2]
[389610946,1759745445725,-500.0,0.00016438,2]
[389610947,1759745445735,-500.0,0.00016438,2]
[389610949,1759745445746,-500.0,0.00016438,2]
[389610950,1759745445755,-500.0,0.00016438,2]
[389610951,1759745445765,-400.0,0.00016438,2]
[389610952,1759745445780,-500.0,0.00016438,2]
[389610953,1759745445790,-500.0,0.00016438,2]
[389610954,1759745445799,-500.0,0.00016438,2]
[389610955,1759745445808,-500.0,0.00016438,2]
[389610956,1759745445817,-500.0,0.00016438,2]
[389610957,1759745445827,-500.0,0.00016438,2]
[389610958,1759745445836,-500.0,0.00016438,2]
[389610959,1759745445845,-500.0,0.00016438,2]
[389610960,1759745445855,-500.0,0.00016438,2]
[389610961,1759745445864,-500.0,0.00016438,2]
[389610962,1759745445873,-500.0,0.00016438,2]
[389610963,1759745445882,-500.0,0.00016438,2]
[389610964,1759745445891,-500.0,0.00016438,2]
[389610965,1759745445900,-500.0,0.00016438,2]
[389610966,1759745445909,-500.0,0.00016438,2]
[389610967,1759745445918,-300.0,0.00016438,2]
[389610968,1759745445927,-500.0,0.00016438,2]
[389610969,1759745445937,-500.0,0.00016438,2]
[389610970,1759745445947,-500.0,0.00016438,2]
[389610971,1759745445956,-500.0,0.00016438,2]
[389610972,1759745445965,-500.0,0.00016438,2]
[389610973,1759745445974,-229.48354243,0.00016438,2]
[389610974,1759745445984,-500.0,0.00016438,2]
[389610975,1759745445993,-500.0,0.00016438,2]
[389610976,1759745446002,-500.0,0.00016438,2]
[389610977,1759745446015,-500.0,0.00016438,2]
[389610978,1759745446024,-500.0,0.00016438,2]
[389610979,1759745446033,-500.0,0.00016438,2]
[389610980,1759745446042,-500.0,0.00016438,2]
[389610981,1759745446051,-500.0,0.00016438,2]
[389610982,1759745446060,-500.0,0.00016438,2]
[389610983,1759745446070,-500.0,0.00016438,2]
[389610984,1759745446080,-500.0,0.00016438,2]
[389610985,1759745446090,-500.0,0.00016438,2]
[389610986,1759745446100,-500.0,0.00016438,2]
[389610987,1759745446109,-473.24226516,0.00016438,2]
[389610988,1759745446119,-408.88489764,0.00016438,2]
[389610989,1759745446128,-500.0,0.00016438,2]
[389610990,1759745446138,-500.0,0.00016438,2]
[389610991,1759745446147,-500.0,0.00016438,2]
[389610992,1759745446157,-500.0,0.00016438,2]
[389610993,1759745446167,-500.0,0.00016438,2]
[389610994,1759745446176,-500.0,0.00016438,2]
[389610995,1759745446185,-500.0,0.00016438,2]
[389610996,1759745446194,-500.0,0.00016438,2]
[389610997,1759745446204,-500.0,0.00016438,2]
[389610998,1759745446213,-500.0,0.00016438,2]
[389610999,1759745446222,-500.0,0.00016438,2]
[389611000,1759745446231,-500.0,0.00016438,2]
[389611001,1759745446240,-500.0,0.00016438,2]
[389611002,1759745446250,-500.0,0.00016438,2]
[389611003,1759745446259,-500.0,0.00016438,2]
[389611004,1759745446269,-500.0,0.00016438,2]
[389611005,1759745446279,-600.0,0.00016438,2]
[389611006,1759745446288,-500.0,0.00016438,2]
[389611007,1759745446298,-500.0,0.00016438,2]
[389611008,1759745446307,-500.0,0.00016438,2]
[389611010,1759745446317,-500.0,0.00016438,2]
[389611012,1759745446326,-500.0,0.00016438,2]
[389611014,1759745446335,-500.0,0.00016438,2]
[389611016,1759745446346,-500.0,0.00016438,2]
[389611018,1759745446355,-500.0,0.00016438,2]
[389611020,1759745446364,-500.0,0.00016438,2]
[389611022,1759745446373,-500.0,0.00016438,2]
[389611024,1759745446382,-500.0,0.00016438,2]
[389611026,1759745446392,-543.55541528,0.00016438,2]
[389611028,1759745446401,-500.47001033,0.00016438,2]
[389611030,1759745446410,-500.0,0.00016438,2]
[389611032,1759745446419,-500.0,0.00016438,2]
[389611034,1759745446428,-500.0,0.00016438,2]
[389611036,1759745446437,-500.0,0.00016438,2]
[389611038,1759745446447,-228.67113045,0.00016438,2]
[389611040,1759745446457,-500.0,0.00016438,2]
[389611042,1759745446466,-500.0,0.00016438,2]
[389611044,1759745446475,-500.0,0.00016438,2]
[389611046,1759745446485,-500.0,0.00016438,2]
[389611048,1759745446494,-500.0,0.00016438,2]
[389611050,1759745446503,-500.0,0.00016438,2]
[389611052,1759745446512,-500.0,0.00016438,2]
[389611054,1759745446521,-500.0,0.00016438,2]
[389611056,1759745446530,-500.0,0.00016438,2]
[389611058,1759745446539,-500.0,0.00016438,2]
[389611060,1759745446548,-500.0,0.00016438,2]
[389611062,1759745446557,-500.0,0.00016438,2]
[389611064,1759745446566,-500.0,0.00016438,2]
[389611066,1759745446577,-500.0,0.00016438,2]
[389611068,1759745446586,-500.0,0.00016438,2]
[389611070,1759745446596,-500.0,0.00016438,2]
[389611072,1759745446604,-500.0,0.00016438,2]
[389611074,1759745446614,-500.0,0.00016438,2]
[389611076,1759745446622,-500.0,0.00016438,2]
[389611078,1759745446632,-197.29606896,0.00016438,2]
[389611080,1759745446641,-500.0,0.00016438,2]
[389611082,1759745446651,-500.0,0.00016438,2]
[389611084,1759745446660,-500.0,0.00016438,2]
[389611085,1759745446670,-208.7922769,0.00016438,2]
[389611087,1759745446679,-316.48023206,0.00016438,2]
[389611089,1759745446687,-500.0,0.00016438,2]
[389611091,1759745446699,-500.0,0.00016438,2]
[389611092,1759745446709,-495.76226216,0.00016438,2]
[389611093,1759745446719,-500.0,0.00016438,2]
[389611094,1759745446728,-351.09143856,0.00016438,2]
[389611095,1759745446739,-500.0,0.00016438,2]
[389611096,1759745446749,-500.0,0.00016438,2]
[389611097,1759745446758,-500.0,0.00016438,2]
[389611098,1759745446769,-500.0,0.00016438,2]
[389611099,1759745446778,-500.0,0.00016438,2]
[389611100,1759745446787,-500.0,0.00016438,2]
[389611101,1759745446796,-500.0,0.00016438,2]
[389611102,1759745446806,-500.0,0.00016438,2]
[389611103,1759745446816,-500.0,0.00016438,2]
[389611104,1759745446826,-500.0,0.00016438,2]
[389611105,1759745446835,-500.0,0.00016438,2]
[389611106,1759745446845,-500.0,0.00016438,2]
[389611107,1759745446855,-500.0,0.00016438,2]
[389611108,1759745446864,-500.0,0.00016438,2]
[389611109,1759745446873,-500.0,0.00016438,2]
[389611110,1759745446883,-500.0,0.00016438,2]
[389611111,1759745446892,-500.0,0.00016438,2]
[389611112,1759745446901,-500.0,0.00016438,2]
[389611113,1759745446910,-500.0,0.00016438,2]
[389611114,1759745446919,-566.03013773,0.00016438,2]
[389611115,1759745446928,-645.02455005,0.00016438,2]
[389611116,1759745446939,-500.0,0.00016438,2]
[389611117,1759745446948,-500.0,0.00016438,2]
[389611118,1759745446957,-500.0,0.00016438,2]
[389611119,1759745446966,-500.0,0.00016438,2]
[389611120,1759745446975,-500.0,0.00016438,2]
[389611121,1759745446984,-532.8613001,0.00016438,2]
[389611122,1759745446994,-500.0,0.00016438,2]
[389611123,1759745447003,-500.0,0.00016438,2]
[389611124,1759745447012,-500.0,0.00016438,2]
[389611125,1759745447021,-500.0,0.00016438,2]
[389611126,1759745447030,-500.0,0.00016438,2]
[389611127,1759745447039,-500.0,0.00016438,2]
[389611128,1759745447048,-500.0,0.00016438,2]
[389611129,1759745447057,-500.0,0.00016438,2]
[389611130,1759745447067,-500.0,0.00016438,2]
[389611131,1759745447076,-500.0,0.00016438,2]
[389611132,1759745447085,-500.0,0.00016438,2]
[389611133,1759745447095,-500.0,0.00016438,2]
[389611134,1759745447104,-500.0,0.00016438,2]
[389611135,1759745447113,-500.0,0.00016438,2]
[389611136,1759745447123,-500.0,0.00016438,2]
[389611137,1759745447133,-500.0,0.00016438,2]